Workbook

Sheet Hoja1
A1: AMOBLAMIENTO - SEMAFOROS MUNICIPIO DE MEDELLÍN
A3: FILTRO
A4: Orden | B4: ID | C4: DIRECCIÓN | D4: TIPO INTER | E4: CL | F4: C/cion | G4: M | H4: M1 | I4: M2 | J4: M3 | K4: M4 | L4: P | M4: P1 | N4: P2 | O4: P3 | P4: P4 | Q4: P5 | R4: pp1 | S4: pp2 | T4: pp3 | U4: pp4 | V4: PC | W4: SV | X4: SM | Y4: SP | Z4: T. LAMP | AA4: sonor | AB4: puls | AC4: dect | AD4: C. regr | AE4: DD | AF4: DP | AG4: COMUNA | AH4: BARRIO | AI4: VOLT | AJ4: CTE | AK4: Total W
A7: Orden | B7: ID | C7: DIRECCIÓN | D7: TIPO INTER | E7: CL | F7: C/cion | G7: M | H7: M1 | I7: M2 | J7: M3 | K7: M4 | L7: P | M7: P1 | N7: P2 | O7: P3 | P7: P4 | Q7: P5 | R7: pp1 | S7: pp2 | T7: pp3 | U7: pp4 | V7: PC | W7: SV | X7: SM | Y7: SP | Z7: T. LAMP | AA7: sonor | AB7: puls | AC7: dect | AD7: C. regr | AE7: DD | AF7: DP | AG7: COMUNA | AH7: BARRIO | AI7: VOLT | AJ7: CTE | AK7: Total W
A8: 1 | B8: 001 | C8: CR 43 A x CL 9 SUR | D8: VP | E8: EC-1 | F8: C | H8: 2 | I8: 2 | M8: 6 | N8: 2 | V8: 4 | W8: 12 | X8: 4 | Y8: 16 | Z8: =(W8*3)+(X8*3)+(Y8*2) -> 80 | AA8: 16 | AC8: 4 | AE8: 12 | AF8: 16 | AG8: POBLADO | AH8: La Aguacatala | AI8: 118.3 | AJ8: 3.1 | AK8: =AI8*AJ8 -> 366.73
A9: =A8+1 -> 2 | B9: 002 | C9: CR 43 A x CL 19 | D9: V | E9: EC-2 | F9: C | G9: 2 | L9: 3 | W9: 5 | X9: 2 | Z9: =(W9*3)+(X9*3)+(Y9*2) -> 21 | AC9: 2 | AE9: 5 | AG9: POBLADO | AH9: Castropol | AI9: 117.3 | AJ9: 0.7 | AK9: =AI9*AJ9 -> 82.11
A10: =A9+1 -> 3 | B10: 003 | C10: CR 43 A x CL 14 | D10: VP | E10: EC-2 | F10: C | G10: 2 | H10: 1 | L10: 1 | N10: 1 | R10: 1 | W10: 5 | X10: 3 | Y10: 4 | Z10: =(W10*3)+(X10*3)+(Y10*2) -> 32 | AB10: 1 | AE10: 5 | AF10: 2 | AG10: POBLADO | AH10: Manila | AI10: 117.1 | AJ10: 0.9 | AK10: 105.39
A11: =A10+1 -> 4 | B11: 004 | C11: CR 43 A x CL 10 | D11: VP | E11: EC-2 | F11: C | H11: 3 | M11: 1 | N11: 2 | R11: 4 | V11: 2 | W11: 6 | X11: 3 | Y11: 12 | Z11: =(W11*3)+(X11*3)+(Y11*2) -> 51 | AA11: 12 | AD11: 2 | AE11: 6 | AG11: POBLADO | AH11: El Poblado | AI11: 113 | AJ11: 1.5 | AK11: 169.5
A12: =A11+1 -> 5 | B12: 005 | C12: CR 43 A x CL 9 | D12: VP | E12: EC-2 | F12: C | H12: 3 | M12: 1 | N12: 2 | R12: 4 | V12: 2 | W12: 6 | X12: 3 | Y12: 12 | Z12: =(W12*3)+(X12*3)+(Y12*2) -> 51 | AA12: 11 | AD12: 2 | AE12: 6 | AG12: POBLADO | AH12: Astorga | AI12: 114.5 | AJ12: 1.5 | AK12: 171.75
A13: =A12+1 -> 6 | B13: 006 | C13: CR 43 A x CL 5A | D13: VP | E13: EC-2 | F13: C | G13: 1 | H13: 1 | L13: 4 | M13: 4 | N13: 1 | R13: 1 | V13: 3 | W13: 12 | X13: 2 | Y13: 8 | Z13: =(W13*3)+(X13*3)+(Y13*2) -> 58 | AA13: 8 | AC13: 3 | AE13: 12 | AG13: POBLADO | AH13: Patio Bonito | AI13: 117.6 | AJ13: 1.7 | AK13: 199.92
A14: 7 | B14: 007 | C14: CR 42 x CL 1 SUR | D14: V | E14: EC-2 | F14: C | M14: 1 | N14: 1 | W14: 3 | Z14: 9 | AE14: 2 | AI14: 114.8 | AJ14: 2.7 | AK14: 309.96
A15: 8 | B15: 007 | C15: CR 43 A x CL 1 SUR | D15: VP | E15: EC-2 | F15: C | H15: 3 | L15: 1 | N15: 2 | R15: 3 | S15: 1 | V15: 2 | W15: 6 | X15: 3 | Y15: 12 | Z15: 51 | AA15: 8 | AE15: 5 | AI15: 114.8 | AJ15: 2.7 | AK15: 309.96
A16: 9 | B16: 007 | C16: CR 43 A x CL 2 SUR | D16: VP | E16: EC-2 | F16: C | H16: 2 | M16: 2 | W16: 4 | X16: 2 | Y16: 4 | Z16: 26 | AB16: 4 | AE16: 4 | AF16: 1 | AI16: 114.8 | AJ16: 2.7 | AK16: 309.96
A17: 10 | B17: 008 | C17: CR 43 A x CL 3 SUR | D17: VP | E17: EC-2 | F17: C | G17: 1 | H17: 2 | L17: 1 | N17: 2 | W17: 6 | X17: 3 | Y17: 6 | Z17: 39 | AA17: 3 | AE17: 6 | AF17: 2 | AG17: POBLADO | AH17: Los Balsos No.2 | AI17: 120.3 | AJ17: 2.1 | AK17: 252.63
A18: 11 | B18: 008 | C18: CR 43 A x CL 5 SUR | D18: VP | E18: EC-2 | F18: C | H18: 1 | L18: 2 | M18: 2 | N18: 1 | R18: 3 | W18: 6 | X18: 1 | Y18: 8 | Z18: 37 | AA18: 2 | AE18: 6 | AG18: POBLADO | AH18: Los Balsos No.3 | AI18: 120.3 | AJ18: 2.1 | AK18: =AI18*AJ18 -> 252.63
A19: 12 | B19: 009 | C19: CR 43 A x CL 7 SUR | Z19: 0 | AK19: =AI19*AJ19 -> 0
A20: 13 | B20: 010 | C20: Cr 43 A x Cl 12 SUR | D20: V | E20: EC-2 | F20: C | G20: 1 | L20: 3 | W20: 4 | X20: 1 | Z20: 15 | AC20: 1 | AE20: 4 | AG20: POBLADO | AH20: Santa María de los Ángeles | AI20: 1.2 | AJ20: 0.3 | AK20: 0.36
A21: 14 | B21: 011 | C21: CR 43 A x CL 16 A SUR | D21: VP | E21: EC-2 | F21: C | H21: 1 | L21: 1 | M21: 4 | R21: 1 | V21: 1 | W21: 6 | X21: 1 | Y21: 6 | Z21: 33 | AB21: 4 | AC21: 1 | AE21: 6 | AF21: 4 | AG21: POBLADO | AH21: Santa María de los Ángeles | AI21: 114.3 | AJ21: 1 | AK21: 114.3
A22: 15 | B22: 012 | C22: CR 43 A x CL 17 SUR | D22: VP | E22: EC-2 | F22: C | G22: 1 | H22: 2 | M22: 1 | R22: 1 | S22: 1 | W22: 4 | X22: 3 | Y22: 6 | Z22: 33 | AE22: 3 | AG22: POBLADO | AH22: Santa María de los Ángeles | AI22: 119 | AJ22: 1.2 | AK22: 142.8
A23: 16 | B23: 013 | C23: CR 32 D x CL 10 | D23: VP | E23: EC-2 | F23: C | I23: 3 | N23: 2 | W23: 5 | X23: 3 | Y23: 10 | Z23: 44 | AE23: 5 | AG23: POBLADO | AH23: Las Lomas No. 1 | AI23: 118.5 | AJ23: 1 | AK23: 118.5
A24: 17 | B24: 014 | C24: CR 35 x CL 10 A | D24: VP | E24: EC-2 | F24: C | I24: 1 | M24: 1 | R24: 1 | W24: 2 | X24: 1 | Y24: 4 | Z24: 17 | AB24: 3 | AE24: 2 | AG24: POBLADO | AH24: Poblado | AI24: 120.1 | AJ24: 1.4 | AK24: 168.14
A25: 18 | B25: 014 | C25: CR 36 x CL 10 A | D25: VP | E25: EC-2 | F25: C | H25: 3 | M25: 2 | R25: 3 | W25: 5 | X25: 3 | Y25: 8 | Z25: 40 | AB25: 3 | AE25: 5 | AG25: POBLADO | AH25: Poblado | AI25: 120.1 | AJ25: 1.4 | AK25: 168.14
A26: 19 | B26: 015 | C26: CR 43 C x CL 10 | D26: VP | E26: EC-2 | F26: C | I26: 1 | M26: 3 | R26: 1 | S26: 1 | V26: 2 | W26: 4 | X26: 1 | Y26: 8 | Z26: 31 | AA26: 8 | AE26: 4 | AG26: POBLADO | AH26: Manila | AI26: 120 | AJ26: 1.8 | AK26: 216
A27: 20 | B27: 015 | C27: CR 43 C x CL 11 | D27: VP | E27: EC-2 | F27: C | H27: 1 | M27: 3 | R27: 4 | W27: 4 | X27: 1 | Y27: 8 | Z27: 31 | AA27: 8 | AE27: 4 | AG27: POBLADO | AH27: Manila | AI27: 120 | AJ27: 1.8 | AK27: 216
A28: 21 | B28: 016 | C28: CR 43 D x CL 11 | D28: VP | E28: EC-2 | F28: C | I28: 1 | M28: 2 | N28: 1 | S28: 1 | W28: 4 | X28: 1 | Y28: 8 | Z28: 31 | AE28: 4 | AG28: POBLADO | AH28: Manila | AI28: 116.8 | AJ28: 1.3 | AK28: 151.84
A29: 22 | B29: 017 | C29: CR 43 F x CL 10 | D29: VP | E29: EC-2 | F29: C | H29: 2 | S29: 1 | W29: 2 | X29: 4 | Y29: 4 | Z29: 26 | AE29: 2 | AG29: POBLADO | AH29: Manila | AI29: 115.8 | AJ29: 2.3 | AK29: 266.34
A30: 23 | B30: 017 | C30: CR 43 F x CL 11 | D30: VP | E30: EC-2 | F30: C | H30: 1 | M30: 3 | W30: 4 | X30: 1 | Y30: 4 | Z30: 23 | AE30: 4 | AG30: POBLADO | AH30: Manila | AI30: 115.8 | AJ30: 2.3 | AK30: 266.34
A31: 24 | B31: 018 | C31: CR 43 B x CL 10 | D31: VP | E31: EC-2 | F31: C | H31: 2 | M31: 4 | W31: 6 | X31: 2 | Y31: 6 | Z31: 36 | AE31: 6 | AG31: POBLADO | AH31: Manila | AI31: 118.7 | AJ31: 1 | AK31: 118.7
A32: 25 | B32: 019 | C32: CR 40 x CL 10 | D32: VP | E32: EC-2 | F32: C | I32: 1 | N32: 1 | S32: 2 | W32: 2 | X32: 1 | Y32: 8 | Z32: 25 | AB32: 2 | AE32: 2 | AG32: POBLADO | AH32: Poblado | AI32: 111.5 | AJ32: 2.1 | AK32: 234.15
A33: 26 | B33: 020 | C33: CR 35 x CL 10 | D33: VP | E33: EC-2 | F33: C | H33: 1 | I33: 1 | M33: 2 | R33: 1 | S33: 1 | W33: 4 | X33: 2 | Y33: 8 | Z33: 34 | AB33: 2 | AE33: 4 | AF33: 2 | AG33: POBLADO | AH33: Poblado | AI33: 111.5 | AJ33: 2.1 | AK33: 234.15
A34: 27 | B34: 020 | C34: CR 36 x CL 10 | D34: VP | E34: EC-2 | F34: C | H34: 1 | M34: 3 | R34: 4 | W34: 4 | X34: 1 | Y34: 8 | Z34: 31 | AB34: 3 | AE34: 4 | AF34: 2 | AG34: POBLADO | AH34: Poblado | AI34: 112.7 | AJ34: 1.4 | AK34: 157.78
A35: 28 | B35: 021 | C35: CR 34 x CL 10 | D35: VP | E35: EC-2 | F35: C | H35: 1 | I35: 1 | M35: 2 | R35: 1 | S35: 1 | W35: 4 | X35: 2 | Y35: 8 | Z35: 34 | AB35: 1 | AE35: 4 | AG35: POBLADO | AH35: Poblado | AI35: 113.5 | AJ35: 1.6 | AK35: 181.6
A36: 29 | B36: 021 | C36: CR 34 x CL 10 A | D36: VP | E36: EC-2 | F36: C | H36: 1 | I36: 1 | M36: 3 | W36: 5 | X36: 2 | Y36: 6 | Z36: 33 | AB36: 1 | AE36: 5 | AF36: 1 | AG36: POBLADO | AH36: Poblado | AI36: 113.5 | AJ36: 1.6 | AK36: 181.6
A37: 30 | B37: 022 | C37: CR 43 A x CL 23 | D37: VP | E37: EC-1 | F37: C | H37: 2 | M37: 2 | W37: 4 | X37: 2 | Y37: 4 | Z37: 26 | AB37: 4 | AE37: 4 | AF37: 4 | AG37: POBLADO | AH37: Castropol | AI37: 122 | AJ37: 1.2 | AK37: 146.4
A38: 31 | B38: 022 | C38: CR 43 A x CL 25 | D38: VP | E38: EC-1 | F38: C | H38: 2 | M38: 2 | W38: 4 | X38: 2 | Y38: 4 | Z38: 26 | AB38: 4 | AE38: 4 | AF38: 4 | AG38: POBLADO | AH38: Castropol | AI38: 122 | AJ38: 1.2 | AK38: 146.4
A39: 32 | B39: 023 | C39: Av 80 x CL 1 SUR | Z39: 0 | AK39: 0
A40: 33 | B40: 024 | C40: Av 80 x CR 65 | D40: VP | E40: EC-1 | F40: C | H40: 2 | I40: 2 | M40: 3 | N40: 5 | R40: 1 | W40: 12 | X40: 4 | Y40: 20 | Z40: 88 | AE40: 12 | AG40: GUAYABAL | AH40: Cristo Rey | AI40: 119.7 | AJ40: 1 | AK40: 119.7
A41: 34 | B41: 024 | C41: Av 80 x CR 67 | D41: VP | E41: EC-1 | F41: C | G41: 2 | L41: 4 | W41: 6 | X41: 2 | Z41: 24 | AC41: 1 | AE41: 6 | AG41: GUAYABAL | AH41: Cristo Rey | AI41: 115.4 | AJ41: 2.4 | AK41: 276.96
A42: 35 | B42: 025 | C42: CR 52 x CL 4 SUR | D42: VP | E42: EC-1 | F42: C | H42: 2 | M42: 2 | W42: 4 | X42: 2 | Y42: 4 | Z42: 26 | AB42: 4 | AE42: 4 | AF42: 4 | AG42: GUAYABAL | AH42: Cristo Rey | AI42: 121.3 | AJ42: 1.5 | AK42: 181.95
A43: 36 | B43: 025 | C43: CR 53 x CL 6 SUR | D43: VP | E43: EC-1 | F43: C | H43: 1 | I43: 1 | M43: 3 | W43: 5 | X43: 2 | Y43: 6 | Z43: 33 | AB43: 5 | AG43: GUAYABAL | AH43: Cristo Rey | AI43: 121.3 | AJ43: 1.5 | AK43: 181.95
A44: 37 | B44: 026 | C44: CR 50 FF x CL 8 SUR | D44: V | E44: EC-1 | F44: C | G44: 4 | L44: 2 | W44: 6 | X44: 4 | Z44: 30 | AE44: 6 | AG44: GUAYABAL | AH44: Guayabal | AI44: 127.1 | AJ44: 0.2 | AK44: 25.42
A45: 38 | B45: 027 | C45: CR 50 FF x CL 12 SUR | Z45: 0 | AK45: 0
A46: 39 | B46: 028 | C46: CR 65 x CL 5 | D46: VP | E46: EC-1 | F46: C | I46: 1 | M46: 2 | N46: 3 | W46: 6 | X46: 1 | Y46: 12 | Z46: 45 | AE46: 6 | AG46: GUAYABAL | AH46: Campo Amor | AI46: 117.3 | AJ46: 1 | AK46: 117.3
A47: 40 | B47: 029 | C47: CR 65 x CL 2 | D47: V | E47: EC-1 | F47: C | G47: 2 | L47: 4 | W47: 6 | X47: 2 | Z47: 24 | AC47: 2 | AE47: 6 | AG47: GUAYABAL | AH47: Cristo Rey | AI47: 115.2 | AJ47: 0.7 | AK47: 80.64
A48: 41 | B48: 030 | C48: CR 52 x CL 14 | D48: VP | E48: EC-1 | F48: C | H48: 4 | N48: 2 | W48: 6 | X48: 4 | Y48: 8 | Z48: 46 | AB48: 5 | AE48: 6 | AF48: 5 | AG48: GUAYABAL | AH48: Santa Fé | AI48: 119.4 | AJ48: 0.6 | AK48: 71.64
A49: 42 | B49: 031 | C49: CR 51 x CL 10 | Z49: 0 | AK49: 0
A50: 43 | B50: 032 | C50: CR 52 x CL 2 SUR | D50: VP | E50: EC-1 | F50: C | G50: 2 | H50: 1 | I50: 1 | L50: 1 | M50: 2 | N50: 2 | R50: 3 | S50: 1 | V50: 2 | W50: 9 | X50: 4 | Y50: 12 | Z50: 63 | AA50: 10 | AE50: 8 | AF50: 5 | AG50: GUAYABAL | AH50: Cristo Rey | AI50: 113.4 | AJ50: 2.5 | AK50: 283.5
A51: 44 | B51: 033 | C51: CR 52 x CL 9 SUR | D51: VP | E51: EC-1 | F51: C | H51: 1 | I51: 2 | M51: 2 | R51: 3 | W51: 5 | X51: 3 | Y51: 10 | Z51: 44 | AE51: 5 | AG51: GUAYABAL | AH51: Guayabal | AI51: 124.6 | AJ51: 2 | AK51: 249.2
A52: 45 | B52: 033 | C52: CR 52 x CL 10 SUR | D52: VP | E52: EC-2 | F52: C | G52: 1 | H52: 2 | L52: 1 | M52: 2 | R52: 2 | W52: 6 | X52: 3 | Y52: 6 | Z52: 39 | AB52: 4 | AE52: 6 | AF52: 4 | AG52: GUAYABAL | AH52: Guayabal | AI52: 124.6 | AJ52: 2 | AK52: =AI52*AJ52 -> 249.2
A53: 46 | B53: 034 | C53: CR 52 x CL 12 SUR | Z53: 0 | AK53: 0
A54: 47 | B54: 034 | C54: CR 52 x CL 12 A SUR | D54: VP | E54: EC-1 | F54: C | H54: 1 | I54: 1 | M54: 2 | N54: 2 | R54: 1 | W54: 6 | X54: 2 | Y54: 9 | Z54: 42 | AC54: 1 | AE54: 6 | AG54: GUAYABAL | AH54: La Colina | AI54: 117.5 | AJ54: 0.8 | AK54: 94
A55: 48 | B55: 035 | C55: CR 51 x CL 12 SUR | Z55: 0 | AK55: 0
A56: 49 | B56: 036 | C56: CR 48 x CL 14 | D56: VPC | E56: EC-1 | F56: C | G56: 2 | I56: 2 | M56: 1 | N56: 1 | O56: 1 | S56: 1 | W56: 7 | X56: 4 | Y56: 12 | Z56: 57 | AB56: 4 | AE56: 7 | AG56: POBLADO | AH56: Villa Carlota | AI56: 116.1 | AJ56: 1.4 | AK56: 162.54
A57: 50 | B57: 037 | C57: CR 48 x CL 10 COST. NORTE | D57: VPC | E57: EC-1 | F57: C | G57: 3 | H57: 2 | L57: 5 | M57: 2 | W57: 12 | X57: 2 | Y57: 4 | Z57: 50 | AE57: 12 | AG57: POBLADO | AH57: Manila | AI57: 119.1 | AJ57: 2.3 | AK57: 273.93
A58: 51 | B58: 037 | C58: CR 48 x CL 10 COST. SUR | D58: VPC | E58: EC-1 | F58: C | G58: 3 | H58: 4 | J58: 1 | L58: 3 | M58: 1 | W58: 11 | X58: 2 | Y58: 8 | Z58: 55 | AE58: 12 | AG58: POBLADO | AH58: Manila | AI58: 119.1 | AJ58: 2.3 | AK58: 273.93
A59: 52 | B59: 038 | C59: CR 34 x CL 11 A | D59: V | E59: EC-1 | F59: C | G59: 2 | L59: 4 | W59: 7 | X59: 2 | Z59: 27 | AE59: 6 | AG59: POBLADO | AH59: Las Lomas No.1 | AI59: 114.7 | AJ59: 1 | AK59: =AI59*AJ59 -> 114.7
A60: 53 | B60: 039 | C60: CR 34 x CL 7 | D60: V | E60: EC-1 | F60: C | G60: 2 | L60: 2 | W60: 4 | X60: 2 | Z60: 18 | AE60: 4 | AG60: POBLADO | AH60: La Florida | AI60: 118.5 | AJ60: 0.8 | AK60: =AI60*AJ60 -> 94.8
A61: 54 | B61: 039 | C61: CR 35 x CL 7 | D61: V | E61: EC-1 | F61: C | G61: 2 | L61: 2 | W61: 4 | X61: 2 | Z61: 18 | AE61: 4 | AG61: POBLADO | AH61: La Florida | AI61: 118.5 | AJ61: 0.8 | AK61: 94.8
A62: 55 | B62: 040 | C62: CR 39 x CL 7 | D62: V | E62: EC-1 | F62: C | L62: 4 | W62: 4 | Z62: 12 | AE62: 4 | AG62: POBLADO | AH62: La Florida | AI62: 120.2 | AJ62: 0.6 | AK62: 72.12
A63: 56 | B63: 041 | C63: CR 34 x CL 11 B | D63: V | E63: EC-1 | F63: C | L63: 6 | W63: 6 | Z63: 18 | AC63: 1 | AE63: 6 | AG63: POBLADO | AH63: Las Lomas No.1 | AI63: 117.6 | AJ63: 0.7 | AK63: 82.32
A64: 57 | B64: 042 | C64: CR 35 x CL 5 SUR | D64: VP | E64: EC-1 | F64: C | G64: 1 | H64: 1 | I64: 1 | L64: 1 | M64: 1 | N64: 1 | R64: 2 | S64: 2 | W64: 6 | X64: 3 | Y64: 12 | Z64: 51 | AB64: 4 | AE64: 6 | AG64: POBLADO | AH64: Los Balsos No.2 | AI64: 121.3 | AJ64: 1.2 | AK64: 145.56
A65: 58 | B65: 043 | C65: CR 37 x CL 9 SUR | D65: VP | E65: EC-1 | F65: C | G65: 1 | H65: 3 | L65: 1 | M65: 4 | N65: 4 | W65: 13 | X65: 4 | Y65: 16 | Z65: 83 | AB65: 8 | AC65: 4 | AE65: 14 | AG65: POBLADO | AH65: El Castillo | AI65: 111.6 | AJ65: 2.5 | AK65: 279
A66: 59 | B66: 044 | C66: CR 30 x CL 10 | D66: VP | E66: EC-2 | F66: C | H66: 3 | M66: 1 | N66: 2 | R66: 4 | W66: 6 | X66: 3 | Y66: 12 | Z66: 51 | AB66: 10 | AC66: 3 | AE66: 6 | AF66: 10 | AG66: POBLADO | AH66: Las Lomas No. 1 | AI66: 118.4 | AJ66: 2.3 | AK66: =AI66*AJ66 -> 272.32
A67: 60 | B67: 045 | C67: CR 30 x CL 7 | D67: V | E67: EC-1 | F67: C | G67: 1 | L67: 3 | W67: 4 | X67: 1 | Z67: 15 | AC67: 1 | AE67: 4 | AG67: POBLADO | AH67: El Tesoro | AI67: 111.3 | AJ67: 0.4 | AK67: =AI67*AJ67 -> 44.52
A68: 61 | B68: 046 | C68: CR 34 x CL 1 SUR | D68: VP | E68: EC-1 | F68: C | G68: 3 | H68: 2 | L68: 1 | N68: 2 | R68: 2 | V68: 1 | W68: 7 | X68: 6 | Y68: 8 | Z68: 55 | AA68: 4 | AB68: 2 | AE68: 8 | AF68: 4 | AG68: POBLADO | AH68: Alejandría | AI68: 115 | AJ68: 2.2 | AK68: =AI68*AJ68 -> 253
A69: 62 | B69: 046 | C69: CR 34 x CL 5 A | D69: V | E69: EC-1 | F69: C | G69: 4 | W69: 4 | X69: 4 | Z69: 24 | AE69: 4 | AG69: POBLADO | AH69: Alejandría | AI69: 115 | AJ69: 2.2 | AK69: =AI69*AJ69 -> 253
A70: 63 | B70: 047 | C70: CR 48 x CL 4 SUR PUENTE COST. NORTE | Z70: 0 | AG70: POBLADO | AH70: La Aguacatala | AK70: =AI70*AJ70 -> 0
A71: 64 | B71: 047 | C71: CR 48 x CL 4 SUR PUENTE COST. SUR | D71: VPC | E71: EC-2 | F71: C | G71: 1 | J71: 1 | L71: 2 | M71: 6 | N71: 2 | R71: 1 | V71: 2 | W71: 12 | X71: 2 | Y71: 13 | Z71: 68 | AA71: 10 | AE71: 12 | AG71: POBLADO | AH71: La Aguacatala | AI71: 110.8 | AJ71: 4.9 | AK71: 542.92
A72: 65 | B72: 048 | C72: CR 48 x CL 16 A SUR | D72: VP | E72: EC-1 | F72: C | H72: 2 | L72: 2 | M72: 2 | W72: 6 | X72: 2 | Y72: 4 | Z72: 32 | AB72: 3 | AC72: 1 | AE72: 6 | AG72: POBLADO | AH72: Santa María de los Ángeles | AI72: 113.1 | AJ72: 0.2 | AK72: =AI72*AJ72 -> 22.62
A73: 66 | B73: 049 | C73: CR 30 x CL 12 | D73: V | E73: EC-1 | F73: C | G73: 2 | W73: 2 | X73: 2 | Z73: 12 | AC73: 1 | AE73: 2 | AG73: POBLADO | AH73: Las Lomas No.2 | AI73: 119.8 | AJ73: 0.6 | AK73: =AI73*AJ73 -> 71.88
A74: 67 | B74: 049 | C74: CR 30 x CL 12 A | D74: V | E74: EC-1 | F74: C | G74: 2 | W74: 2 | X74: 2 | Z74: 12 | AC74: 1 | AE74: 2 | AG74: POBLADO | AH74: Las Lomas No.2 | AI74: 119.8 | AJ74: 0.6 | AK74: =AI74*AJ74 -> 71.88
A75: 68 | B75: 050 | C75: CR 32 x CL 1 SUR | D75: VP | E75: EC-1 | F75: C | H75: 2 | M75: 2 | N75: 2 | R75: 4 | V75: 2 | W75: 6 | X75: 2 | Y75: 12 | Z75: 48 | AA75: 12 | AE75: 6 | AG75: POBLADO | AH75: Los Naranjos | AI75: 116.2 | AJ75: 1.9 | AK75: =AI75*AJ75 -> 220.78
A76: 69 | B76: 051 | C76: CR 32 x CL 5 SUR | Z76: 0 | AK76: 0
A77: =A76+1 -> 70 | B77: 052 | C77: CR 32 x CL 9 SUR | D77: VP | E77: EC-2 | F77: C | H77: 3 | M77: 5 | N77: 1 | R77: 4 | W77: 10 | X77: 3 | Y77: 14 | Z77: =(W77*3)+(X77*3)+(Y77*2) -> 67 | AB77: 11 | AC77: 1 | AE77: 10 | AF77: 11 | AG77: POBLADO | AH77: El Castillo | AI77: 117.6 | AJ77: 2.5 | AK77: 294
A78: 71 | B78: 053 | C78: CR 32 x CL 16 A SUR | D78: VP | E78: MFU3000 | F78: C | G78: 1 | H78: 1 | I78: 1 | M78: 1 | W78: 4 | X78: 2 | Z78: 18 | AB78: 3 | AC78: 2 | AE78: 4 | AF78: 3 | AG78: POBLADO | AH78: San Lucas | AI78: 0 | AJ78: 0 | AK78: 0
A79: 72 | B79: 054 | C79: CR 25 x CL 3 | D79: VP | E79: EC-2 | F79: C | H79: 1 | I79: 1 | M79: 3 | N79: 1 | R79: 2 | W79: 6 | X79: 2 | Y79: 10 | Z79: 44 | AB79: 6 | AE79: 6 | AF79: 6 | AG79: POBLADO | AH79: Los Naranjos | AI79: 117.5 | AJ79: 0.9 | AK79: 105.75
A80: 73 | B80: 055 | C80: CR 25 x CL 5 SUR | D80: V | E80: EC-1 | F80: C | G80: 3 | W80: 3 | X80: 3 | Z80: 18 | AC80: 1 | AE80: 3 | AG80: POBLADO | AH80: Los Naranjos | AI80: 118 | AJ80: 0.6 | AK80: 70.8
A81: 74 | B81: 056 | C81: CR 25 x CL 12 SUR | D81: VP | E81: EC-2 | F81: C | H81: 3 | M81: 3 | W81: 6 | X81: 3 | Y81: 6 | Z81: 39 | AB81: 2 | AE81: 6 | AF81: 2 | AG81: POBLADO | AH81: Los Balsos No.1 | AI81: 116.5 | AJ81: 0.9 | AK81: 104.85
A82: 75 | B82: 057 | C82: CR 52 x CL 21 A | D82: VP | E82: EC-1 | F82: C | H82: 4 | M82: 4 | W82: 8 | X82: 4 | Y82: 8 | Z82: 52 | AB82: 8 | AE82: 8 | AG82: GUAYABAL | AH82: Santa Fé | AI82: 114.6 | AJ82: 0.7 | AK82: =AI82*AJ82 -> 80.22
A83: 76 | B83: 058 | C83: CR 52 x CL 5 | D83: VP | E83: EC-1 | F83: C | H83: 2 | M83: 2 | W83: 4 | X83: 2 | Y83: 4 | Z83: 26 | AB83: 4 | AE83: 4 | AG83: GUAYABAL | AH83: Campo Amor | AI83: 116.9 | AJ83: 0.9 | AK83: 105.21
A84: 77 | B84: 059 | C84: CR 48 x CL 7 D | D84: VP | E84: EC-1 | F84: C | H84: 2 | N84: 2 | W84: 4 | X84: 2 | Y84: 6 | Z84: 30 | AB84: 4 | AE84: 4 | AF84: 3 | AG84: POBLADO | AH84: Patio Bonito | AI84: 117.6 | AJ84: 0.1 | AK84: 11.76
A85: 78 | B85: 060 | C85: CR 48 B x CL 5 | D85: VP | E85: EC-1 | F85: C | H85: 2 | N85: 2 | W85: 4 | X85: 2 | Y85: 6 | Z85: 30 | AB85: 4 | AE85: 4 | AF85: 3 | AG85: POBLADO | AH85: Patio Bonito | AI85: 116.1 | AJ85: 0.4 | AK85: 46.44
A86: 79 | B86: 061 | C86: CR 43 C x CL 2 SUR | D86: VP | E86: EC-2 | F86: C | H86: 1 | M86: 1 | W86: 2 | X86: 1 | Y86: 2 | Z86: 13 | AB86: 2 | AE86: 2 | AG86: POBLADO | AH86: Patio Bonito | AI86: 125.1 | AJ86: 1.3 | AK86: 162.63
A87: 80 | B87: 061 | C87: CR 43 C x CL 4 SUR | D87: VP | E87: EC-2 | F87: C | H87: 1 | M87: 1 | W87: 1 | X87: 2 | Y87: 2 | Z87: 13 | AB87: 2 | AE87: 2 | AG87: POBLADO | AH87: Patio Bonito | AI87: 125.1 | AJ87: 1.3 | AK87: 162.63
A88: 81 | B88: 062 | C88: CR 43 C x CL 6 SUR | D88: VP | E88: EC-2 | F88: C | G88: 1 | I88: 1 | L88: 1 | M88: 1 | R88: 1 | W88: 4 | X88: 2 | Y88: 4 | Z88: 26 | AA88: 3 | AE88: 4 | AF88: 3 | AG88: POBLADO | AH88: La Aguacatala | AI88: 118.9 | AJ88: 3 | AK88: 356.7
A89: 82 | B89: 062 | C89: CR 43 C x CL 7 SUR | D89: VP | E89: EC-2 | F89: C | H89: 2 | M89: 2 | W89: 4 | X89: 2 | Y89: 4 | Z89: 26 | AA89: 4 | AE89: 4 | AG89: POBLADO | AH89: La Aguacatala | AI89: 118.9 | AJ89: 3 | AK89: 356.7
A90: 83 | B90: 063 | C90: CR 48 x CL 18 A | D90: VP | E90: EC-1 | F90: C | H90: 2 | N90: 2 | R90: 2 | W90: 4 | X90: 2 | Y90: 8 | Z90: 34 | AA90: 6 | AE90: 4 | AG90: POBLADO | AH90: Villa Carlota | AI90: 115.7 | AJ90: 0.2 | AK90: 23.14
A91: 84 | B91: 064 | C91: CR 50 x CL 4 SUR | Z91: 0 | AK91: 0
A92: 85 | B92: 065 | C92: CR 51 x CL 2 SUR | D92: VP | E92: EC-1 | F92: C | H92: 3 | M92: 1 | N92: 2 | R92: 4 | W92: 6 | X92: 3 | Y92: 12 | Z92: 51 | AB92: 6 | AE92: 6 | AF92: 6 | AG92: GUAYABAL | AH92: Cristo Rey | AI92: 112.1 | AJ92: 0.1 | AK92: 11.21
A93: 86 | B93: 066 | C93: CR 50 E x CL 2 SUR | D93: VP | E93: EC-1 | F93: C | H93: 4 | M93: 1 | N93: 1 | R93: 5 | W93: 5 | X93: 5 | Y93: 12 | Z93: 54 | AB93: 8 | AE93: 6 | AF93: 8 | AG93: GUAYABAL | AH93: Cristo Rey | AI93: 113.9 | AJ93: 1.6 | AK93: 182.24
A94: 87 | B94: 067 | C94: CR 83 x CL 29 | D94: V | E94: EC-1 | F94: C | G94: 2 | W94: 2 | X94: 2 | Z94: 12 | AE94: 2 | AG94: BELEN | AH94: Los Alpes | AI94: 128.1 | AJ94: 1.2 | AK94: 153.72
A95: 88 | B95: 067 | C95: CR 83 x CL 30 | D95: V | E95: EC-1 | F95: C | G95: 1 | L95: 2 | W95: 3 | X95: 1 | Z95: 12 | AE95: 3 | AG95: BELEN | AH95: Los Alpes | AI95: 128.1 | AJ95: 1.2 | AK95: 153.72
A96: 89 | B96: 067 | C96: CR 83 x CL 30 A | D96: V | E96: EC-1 | F96: C | G96: 2 | L96: 1 | W96: 3 | X96: 2 | Z96: 15 | AE96: 3 | AG96: BELEN | AH96: Los Alpes | AI96: 128.1 | AJ96: 1.2 | AK96: 153.72
A97: 90 | B97: 068 | C97: CR 82 A x CL 30 | D97: VP | E97: EC-1 | F97: C | G97: 3 | L97: 2 | W97: 5 | X97: 3 | Z97: 24 | AC97: 4 | AE97: 4 | AG97: BELEN | AH97: Belén | AI97: 119.4 | AJ97: 1.5 | AK97: 179.1
A98: 91 | B98: 068 | C98: CR 82 A x CL 30 A | D98: VP | E98: EC-1 | F98: C | H98: 2 | M98: 2 | W98: 4 | X98: 2 | Y98: 4 | Z98: 26 | AE98: 4 | AG98: BELEN | AH98: Belén | AI98: 119.4 | AJ98: 1.5 | AK98: =AI98*AJ98 -> 179.1
A99: 92 | B99: 069 | C99: AV 80 x CL 30 | D99: V | E99: EC-1 | F99: C | G99: 2 | L99: 4 | W99: 8 | X99: 2 | Z99: 30 | AE99: 7 | AG99: BELEN | AH99: Belén | AK99: =AI99*AJ99 -> 0
A100: 93 | B100: 069 | C100: AV 80 x CL 30 A | D100: V | E100: EC-1 | F100: C | G100: 3 | W100: 3 | X100: 3 | Z100: 18 | AG100: BELEN | AH100: Belén | AK100: =AI100*AJ100 -> 0
A101: 94 | B101: 070 | C101: CR 77 x CL 30 | D101: VP | E101: EC-1 | F101: C | G101: 1 | H101: 3 | M101: 3 | R101: 2 | W101: 7 | X101: 4 | Y101: 8 | Z101: 49 | AA101: 8 | AE101: 7 | AG101: BELEN | AH101: Belén | AI101: 113.7 | AJ101: 2.5 | AK101: 284.25
A102: 95 | B102: 070 | C102: CR 78 x CL 30 | D102: VP | E102: EC-1 | F102: C | G102: 1 | I102: 2 | N102: 2 | S102: 2 | W102: 5 | X102: 3 | Y102: 12 | Z102: 48 | AC102: 4 | AE102: 5 | AG102: BELEN | AH102: Belén | AI102: 113.7 | AJ102: 2.5 | AK102: 284.25
A103: 96 | B103: 071 | C103: CR 76 x CL 29 | D103: VP | E103: EC-1 | F103: C | H103: 1 | M103: 1 | W103: 2 | X103: 1 | Y103: 2 | Z103: 13 | AC103: 7 | AE103: 2 | AG103: BELEN | AH103: Belén | AI103: 112.2 | AJ103: 2.4 | AK103: 269.28
A104: 97 | B104: 071 | C104: CR 76 x CL 30 | D104: VP | E104: EC-1 | F104: C | H104: 4 | N104: 2 | R104: 4 | W104: 6 | X104: 4 | Y104: 12 | Z104: 54 | AC104: 5 | AE104: 6 | AG104: BELEN | AH104: Belén | AI104: 112.2 | AJ104: 2.4 | AK104: 269.28
A105: 98 | B105: 072 | C105: CR 70 x CL 29 | D105: V | E105: EC-1 | F105: C | G105: 2 | L105: 2 | W105: 4 | X105: 2 | Z105: 18 | AE105: 4 | AG105: BELEN | AH105: Granada | AI105: 115.7 | AJ105: 1.9 | AK105: 219.83
A106: 99 | B106: 072 | C106: CR 70 x CL 30 | D106: VP | E106: EC-1 | F106: C | H106: 3 | I106: 1 | N106: 2 | R106: 3 | S106: 1 | W106: 5 | X106: 4 | Y106: 14 | Z106: 55 | AC106: 4 | AE106: 6 | AG106: BELEN | AH106: Granada | AI106: 115.7 | AJ106: 1.9 | AK106: 219.83
A107: 100 | B107: 073 | C107: CR 69 B x CL 30 | D107: VP | E107: EC-1 | F107: C | G107: 2 | L107: 2 | M107: 2 | R107: 2 | W107: 6 | X107: 2 | Y107: 4 | Z107: 32 | AC107: 4 | AE107: 6 | AG107: BELEN | AH107: Granada | AI107: 114.6 | AJ107: 0.9 | AK107: 103.14
A108: 101 | B108: 074 | C108: CR 66 B x CL 30 | D108: VP | E108: EC-1 | F108: C | H108: 5 | L108: 1 | M108: 2 | R108: 7 | W108: 8 | X108: 5 | Y108: 14 | Z108: 67 | AE108: 8 | AG108: GUAYABAL | AH108: Parque Juan Pablo II | AI108: 114.9 | AJ108: 3.4 | AK108: 390.66
A109: 102 | B109: 075 | C109: CR 65 x CL 30 COST. NORTE | D109: VP | E109: EC-1 | F109: C | G109: 1 | H109: 1 | I109: 2 | M109: 1 | N109: 1 | R109: 2 | W109: 5 | X109: 3 | Y109: 10 | Z109: 44 | AE109: 5 | AG109: GUAYABAL | AH109: Tenche | AI109: 120 | AJ109: 0.1 | AK109: 12
A110: 103 | B110: 075 | C110: CR 65 x CL 30 COST. SUR | D110: VP | E110: EC-1 | F110: C | H110: 2 | I110: 2 | M110: 1 | N110: 1 | R110: 1 | S110: 2 | W110: 5 | X110: 3 | Y110: 14 | Z110: 52 | AE110: 5 | AG110: GUAYABAL | AH110: Tenche | AI110: 120 | AJ110: 0.1 | AK110: 12
A111: 104 | B111: 076 | C111: CR 55 x CL 30 | D111: VP | E111: EC-1 | F111: C | G111: 1 | L111: 5 | R111: 2 | W111: 6 | X111: 1 | Y111: 2 | Z111: 25 | AE111: 6 | AG111: GUAYABAL | AH111: Tenche | AI111: 117.9 | AJ111: 0.7 | AK111: 82.53
A112: 105 | B112: 077 | C112: CR 80 x CL 35 | D112: V | E112: EC-1 | F112: C | G112: 4 | L112: 2 | W112: 6 | X112: 4 | Z112: 30 | AE112: 6 | AG112: LAURELES | AH112: Las Acacias | AI112: 116.5 | AJ112: 0.7 | AK112: 81.55
A113: 106 | B113: 078 | C113: CR 80 x CL 33 | D113: VP | E113: EC-1 | F113: C | H113: 4 | N113: 2 | R113: 4 | W113: 6 | X113: 4 | Y113: 12 | Z113: 54 | AE113: 6 | AG113: BELEN | AH113: El Nogal | AI113: 123.5 | AJ113: 1.1 | AK113: 135.85
A114: 107 | B114: 079 | C114: CR 80 x CL 32 COST. SUR | D114: VP | E114: EC-1 | F114: C | H114: 1 | M114: 2 | N114: 3 | R114: 1 | S114: 1 | W114: 6 | X114: 1 | Y114: 12 | Z114: 45 | AE114: 6 | AG114: BELEN | AH114: Belén | AI114: 116.7 | AJ114: 1.7 | AK114: 198.39
A115: 108 | B115: 079 | C115: CR 80 x CL 32 COST. NORTE | D115: VP | E115: EC-1 | F115: C | J115: 2 | M115: 2 | N115: 2 | S115: 1 | W115: 6 | X115: 2 | Y115: 14 | Z115: 52 | AE115: 6 | AG115: BELEN | AH115: Belén | AI115: 116.7 | AJ115: 1.7 | AK115: 198.39
A116: 109 | B116: 080 | C116: CR 80 X CL 28 | D116: V | E116: EC-1 | F116: C | G116: 3 | W116: 3 | X116: 3 | Z116: 18 | AE116: 3 | AG116: BELEN | AH116: La Palma | AI116: 118.5 | AJ116: 0.7 | AK116: 82.95
A117: 110 | B117: 081 | C117: CR 80 x CL 21 | D117: V | E117: EC-1 | F117: C | G117: 2 | L117: 4 | W117: 6 | X117: 2 | Z117: 24 | AE117: 6 | AG117: BELEN | AH117: La Palma | AI117: 114.2 | AJ117: 0.9 | AK117: 102.78
A118: 111 | B118: 081 | C118: CR 80 x CL 25 | D118: V | E118: EC-1 | F118: C | G118: 1 | L118: 5 | W118: 6 | X118: 1 | Z118: 21 | AE118: 6 | AG118: BELEN | AH118: La Palma | AI118: 114.2 | AJ118: 0.9 | AK118: 102.78
A119: 112 | B119: 082 | C119: CR 80 x CL 20 A | D119: V | E119: EC-1 | F119: C | G119: 3 | L119: 3 | W119: 6 | X119: 3 | Z119: 27 | AE119: 6 | AG119: BELEN | AH119: La Gloria | AI119: 117.4 | AJ119: 0.6 | AK119: 70.44
A120: 113 | B120: 083 | C120: CR 80 x CL 9 COST. NORTE | D120: V | E120: EC-1 | F120: C | G120: 2 | L120: 1 | W120: 3 | X120: 2 | Z120: 15 | AE120: 3 | AG120: BELEN | AH120: Loma de los Bernal | AI120: 114.3 | AJ120: 1.2 | AK120: 137.16
A121: 114 | B121: 083 | C121: CR 80 x CL 9 COST. SUR | D121: V | E121: EC-1 | F121: C | G121: 2 | L121: 2 | W121: 4 | X121: 2 | Z121: 18 | AE121: 4 | AG121: BELEN | AH121: Loma de los Bernal | AI121: 114.3 | AJ121: 1.2 | AK121: 137.16
A122: 115 | B122: 083 | C122: CR 80 x CL 11 | D122: V | E122: EC-1 | F122: C | G122: 3 | L122: 3 | W122: 6 | X122: 3 | Z122: 27 | AE122: 6 | AG122: BELEN | AH122: Loma de los Bernal | AI122: 114.3 | AJ122: 1.2 | AK122: 137.16
A123: 116 | B123: 084 | C123: CR 80 x DG 75 D COST. NORTE | D123: V | E123: EC-1 | F123: C | G123: 1 | L123: 3 | W123: 4 | X123: 1 | Z123: 15 | AE123: 4 | AG123: BELEN | AH123: La Mota | AI123: 120.4 | AJ123: 0.9 | AK123: 108.36
A124: 117 | B124: 084 | C124: CR 80 x DG 75 D COST. SUR | D124: V | E124: EC-1 | F124: C | L124: 4 | W124: 4 | Z124: 12 | AE124: 4 | AG124: BELEN | AH124: La Mota | AI124: 120.4 | AJ124: 0.9 | AK124: 108.36
A125: 118 | B125: 085 | C125: CR 80 x CL 2 | D125: VP | E125: EC-1 | F125: C | H125: 2 | M125: 2 | W125: 4 | X125: 2 | Y125: 4 | Z125: 26 | AB125: 4 | AE125: 4 | AG125: BELEN | AH125: La Mota | AI125: 116.2 | AJ125: 0.8 | AK125: 92.96
A126: 119 | B126: 086 | C126: CR 76 x CL 34 | D126: VP | E126: EC-1 | F126: C | G126: 1 | H126: 1 | L126: 2 | N126: 1 | W126: 5 | X126: 2 | Y126: 3 | Z126: 27 | AE126: 5 | AG126: LAURELES | AH126: Laureles | AI126: 111.5 | AJ126: 0.6 | AK126: 66.9
A127: 120 | B127: 087 | C127: CR 76 x CL 32 F | D127: VP | E127: EC-1 | F127: C | H127: 3 | I127: 1 | R127: 1 | S127: 1 | W127: 4 | X127: 4 | Y127: 8 | Z127: 40 | AE127: 4 | AG127: BELEN | AH127: El Nogal-Los Almendros | AI127: 115.4 | AJ127: 1.2 | AK127: 138.48
A128: 121 | B128: 087 | C128: CR 76 x CL 33 | D128: VP | E128: EC-1 | F128: C | H128: 3 | M128: 1 | N128: 2 | R128: 4 | W128: 6 | X128: 3 | Y128: 12 | Z128: 51 | AD128: 1 | AG128: BELEN | AH128: El Nogal-Los Almendros | AI128: 115.4 | AJ128: 1.2 | AK128: 138.48
A129: 122 | B129: 087 | C129: CR 76 x CL 33 A | D129: VP | E129: EC-1 | F129: C | G129: 2 | H129: 1 | I129: 2 | R129: 2 | S129: 2 | W129: 4 | X129: 4 | Y129: 10 | Z129: 44 | AE129: 4 | AG129: BELEN | AH129: El Nogal-Los Almendros | AI129: 115.4 | AJ129: 1.2 | AK129: 138.48
A130: 123 | B130: 088 | C130: CR 76 x CL 32 B COST. SUR | D130: VP | E130: EC-1 | F130: C | G130: 1 | J130: 1 | O130: 2 | R130: 1 | W130: 3 | X130: 3 | Y130: 11 | Z130: 40 | AE130: 4 | AG130: BELEN | AH130: Belén | AI130: 116.1 | AJ130: 2.1 | AK130: 243.81
A131: 124 | B131: 088 | C131: CR 76 x CL 32 BB COST. NORTE | D131: VP | E131: EC-1 | F131: C | H131: 1 | L131: 1 | M131: 1 | N131: 1 | P131: 1 | S131: 1 | T131: 1 | W131: 5 | X131: 1 | Y131: 13 | Z131: 44 | AE131: 5 | AG131: BELEN | AH131: Belén | AI131: 116.1 | AJ131: 2.1 | AK131: 243.81
A132: 125 | B132: 089 | C132: CR 76 x CL 31 | D132: VP | E132: EC-1 | F132: C | H132: 2 | I132: 1 | N132: 1 | R132: 2 | S132: 1 | W132: 4 | X132: 3 | Y132: 10 | Z132: 41 | AE132: 4 | AG132: BELEN | AH132: Belén | AI132: 114 | AJ132: 1 | AK132: 114
A133: 126 | B133: 090 | C133: CR 76 x CL 30 A | D133: VP | E133: EC-1 | F133: C | H133: 3 | R133: 3 | S133: 1 | W133: 3 | X133: 3 | Y133: 8 | Z133: 34 | AB133: 1 | AE133: 3 | AG133: BELEN | AH133: Belén | AI133: 116.3 | AJ133: 0.9 | AK133: 104.67
A134: 127 | B134: 091 | C134: CR 76 x CL 27 | D134: VP | E134: EC-1 | F134: C | G134: 1 | H134: 1 | M134: 1 | N134: 1 | W134: 4 | X134: 2 | Y134: 4 | Z134: 26 | AE134: 4 | AG134: BELEN | AH134: San Bernardo | AI134: 115.8 | AJ134: 1.3 | AK134: 150.54
A135: 128 | B135: 091 | C135: CR 76 x CL 28 | D135: VP | E135: EC-1 | F135: C | G135: 1 | I135: 1 | M135: 1 | N135: 1 | R135: 1 | W135: 4 | X135: 2 | Y135: 6 | Z135: 30 | AE135: 4 | AG135: BELEN | AH135: San Bernardo | AI135: 115.8 | AJ135: 1.3 | AK135: 150.54
A136: 129 | B136: 092 | C136: CR 76 x CL 20 A | D136: V | E136: EC-1 | F136: C | G136: 2 | L136: 2 | W136: 4 | X136: 2 | Z136: 18 | AE136: 4 | AG136: BELEN | AH136: San Bernardo | AI136: 120.1 | AJ136: 1.5 | AK136: 180.15
A137: 130 | B137: 092 | C137: CR 76 x CL 25 | D137: V | E137: EC-1 | F137: C | G137: 4 | L137: 2 | W137: 6 | X137: 4 | Z137: 30 | AE137: 6 | AG137: BELEN | AH137: San Bernardo | AI137: 120.1 | AJ137: 1.5 | AK137: 180.15
A138: 131 | B138: 093 | C138: CR 76 x CL 11 | D138: V | E138: EC-1 | F138: C | G138: 1 | W138: 2 | X138: 1 | Z138: 9 | AE138: 2 | AG138: BELEN | AH138: Las Playas | AI138: 118 | AJ138: 0.8 | AK138: 94.4
A139: 132 | B139: 093 | C139: CR 76 x CL 13 | D139: VP | E139: EC-1 | F139: C | G139: 1 | H139: 1 | M139: 1 | W139: 2 | X139: 2 | Y139: 2 | Z139: 16 | AB139: 2 | AE139: 2 | AF139: 2 | AG139: BELEN | AH139: Las Playas | AI139: 118 | AJ139: 0.8 | AK139: 94.4
A140: 133 | B140: 094 | C140: CR 69 B x CL 25 A | D140: VPC | E140: EC-1 | F140: C | H140: 1 | R140: 1 | W140: 1 | X140: 1 | Y140: 2 | Z140: 10 | AE140: 1 | AG140: BELEN | AH140: Granada | AI140: 115.9 | AJ140: 1.2 | AK140: =AI140*AJ140 -> 139.08
A141: =A140+1 -> 134 | B141: 094 | C141: CR 70 x CL 26 B | D141: VP | E141: EC-1 | F141: C | G141: 2 | L141: 1 | R141: 1 | W141: 3 | X141: 2 | Y141: 1 | Z141: =(W141*3)+(X141*3)+(Y141*2) -> 17 | AE141: 2 | AG141: BELEN | AH141: Granada | AI141: 115.9 | AJ141: 1.2 | AK141: =AI141*AJ141 -> 139.08
A142: 135 | B142: 094 | C142: CR 70 x CL 27 | D142: VP | E142: EC-1 | F142: C | G142: 1 | L142: 2 | R142: 1 | W142: 3 | X142: 1 | Y142: 1 | Z142: =(W142*3)+(X142*3)+(Y142*2) -> 14 | AE142: 3 | AG142: BELEN | AH142: Granada | AI142: 115.9 | AJ142: 1.2 | AK142: =AI142*AJ142 -> 139.08
A143: 136 | B143: 095 | C143: CR 70 x CL 24 | D143: V | E143: EC-1 | F143: C | H143: 3 | L143: 2 | W143: 5 | X143: 3 | Z143: 24 | AE143: 5 | AG143: BELEN | AH143: San Bernardo | AI143: 115.1 | AJ143: 0.6 | AK143: 69.06
A144: 137 | B144: 096 | C144: CR 70 x CL 16 | D144: VP | E144: EC-1 | F144: C | H144: 2 | M144: 2 | R144: 4 | W144: 4 | X144: 2 | Y144: 8 | Z144: 34 | AB144: 8 | AC144: 2 | AE144: 4 | AF144: 8 | AG144: BELEN | AH144: Las Playas | AI144: 111.2 | AJ144: 0.1 | AK144: 11.12
A145: 138 | B145: 096 | C145: CR 70 x CL 19 | D145: V | E145: EC-1 | F145: C | G145: 3 | L145: 2 | W145: 5 | X145: 3 | Z145: 24 | AD145: 1 | AE145: 5 | AG145: BELEN | AH145: Las Playas | AI145: 111.2 | AJ145: 0.1 | AK145: 11.12
A146: 139 | B146: 097 | C146: CR 70 x CL 14 | D146: V | E146: EC-1 | F146: C | G146: 2 | L146: 4 | W146: 6 | X146: 2 | Z146: 24 | AE146: 6 | AG146: BELEN | AH146: Las Playas | AI146: 113.2 | AJ146: 0.8 | AK146: 90.56
A147: 140 | B147: 098 | C147: CR 70 x CL 9 | D147: V | E147: EC-1 | F147: C | G147: 2 | L147: 4 | W147: 6 | X147: 2 | Z147: 24 | AC147: 1 | AE147: 6 | AG147: BELEN | AH147: Diego Echavarría | AI147: 115.1 | AJ147: 0.7 | AK147: 80.57
A148: 141 | B148: 099 | C148: CR 78 x CL 33 | D148: VP | E148: EC-1 | F148: C | H148: 3 | M148: 1 | N148: 2 | R148: 4 | W148: 6 | X148: 3 | Y148: 12 | Z148: 51 | AE148: 6 | AG148: BELEN | AH148: El Nogal-Los Almendros | AI148: 117.2 | AJ148: 1.2 | AK148: 140.64
A149: 142 | B149: 100 | C149: CR 72 x CL 33 | D149: VP | E149: EC-1 | F149: C | H149: 2 | M149: 2 | W149: 4 | X149: 2 | Y149: 4 | Z149: 26 | AB149: 4 | AE149: 4 | AF149: 4 | AG149: BELEN | AH149: El Nogal-Los Almendros | AI149: 121.4 | AJ149: 1.3 | AK149: 157.82
A150: 143 | B150: 100 | C150: CR 74 x CL 33 | D150: VP | E150: EC-1 | F150: C | H150: 2 | M150: 2 | W150: 4 | X150: 2 | Y150: 4 | Z150: 26 | AB150: 4 | AE150: 4 | AF150: 4 | AG150: BELEN | AH150: El Nogal-Los Almendros | AI150: 121.4 | AJ150: 1.3 | AK150: 157.82
A151: 144 | B151: 101 | C151: DIAG 74 B x CL 33 NOR-OCCI | D151: VP | E151: EC-1 | F151: C | G151: 2 | H151: 2 | M151: 4 | W151: 8 | X151: 4 | Y151: 6 | Z151: 48 | AE151: 8 | AG151: LAURELES | AH151: U.P.B. | AI151: 111.2 | AJ151: 3.9 | AK151: 433.68
A152: 145 | B152: 101 | C152: DIAG 74 B x CL 33 NOR-ORI | D152: VP | E152: EC-1 | F152: C | M152: 4 | W152: 4 | Y152: 4 | Z152: 20 | AE152: 4 | AG152: LAURELES | AH152: U.P.B. | AI152: 111.2 | AJ152: 3.9 | AK152: 433.68
A153: 146 | B153: 101 | C153: DIAG 74 B x CL 33 SUR-OCCI | D153: VP | E153: EC-1 | F153: C | G153: 1 | H153: 1 | M153: 7 | W153: 10 | X153: 2 | Y153: 8 | Z153: 52 | AE153: 10 | AF153: 1 | AG153: LAURELES | AH153: U.P.B. | AI153: 111.2 | AJ153: 3.9 | AK153: 433.68
A154: 147 | B154: 101 | C154: DIAG 74 B x CL 33 SUR-ORI | D154: VP | E154: EC-1 | F154: C | G154: 2 | H154: 1 | L154: 3 | W154: 6 | X154: 3 | Y154: 4 | Z154: 35 | AE154: 6 | AG154: LAURELES | AH154: U.P.B. | AI154: 111.2 | AJ154: 3.9 | AK154: 433.68
A155: 148 | B155: 102 | C155: CR 66 B x CL 33 | D155: V | E155: EC-1 | F155: C | G155: 3 | L155: 3 | W155: 6 | X155: 3 | Z155: 27 | AE155: 6 | AG155: BELEN | AH155: Rosales | AI155: 116.9 | AJ155: 0.6 | AK155: 70.14
A156: 149 | B156: 103 | C156: CR 66 A x CL 33 LAT OCCIDENTAL | D156: VP | E156: EC-1 | F156: C | I156: 1 | M156: 1 | N156: 1 | O156: 1 | R156: 1 | W156: 4 | X156: 1 | Y156: 9 | Z156: 33 | AE156: 4 | AG156: BELEN | AH156: Fátima | AI156: 116.5 | AJ156: 1.6 | AK156: 186.4
A157: 150 | B157: 103 | C157: CR 66 A x CL 33 LAT ORIENTAL | D157: VP | E157: EC-1 | F157: C | I157: 1 | M157: 1 | N157: 2 | R157: 4 | W157: 4 | X157: 1 | Y157: 11 | Z157: 37 | AE157: 4 | AG157: BELEN | AH157: Fátima | AI157: 116.5 | AJ157: 1.6 | AK157: 186.4
A158: 151 | B158: 104 | C158: CR 65 x CL 33 | D158: VP | E158: EC-1 | F158: C | G158: 1 | L158: 1 | N158: 1 | R158: 5 | S158: 1 | W158: 4 | X158: 2 | Y158: 10 | Z158: 38 | AA158: 1 | AB158: 1 | AE158: 4 | AG158: BELEN | AH158: Fátima | AI158: 112 | AJ158: 0.9 | AK158: 100.8
A159: 152 | B159: 105 | C159: DIAG 74 B x CL 32 F OCCIDENTAL | D159: VP | E159: EC-1 | F159: C | M159: 3 | N159: 1 | O159: 2 | R159: 3 | U159: 1 | W159: 6 | Y159: 18 | Z159: 54 | AE159: 6 | AG159: BELEN | AH159: Rosales | AI159: 116.7 | AJ159: 2.4 | AK159: 280.08
A160: 153 | B160: 105 | C160: DIAG 74 B x CL 32 F ORIENTAL | D160: VP | E160: EC-1 | F160: C | M160: 3 | N160: 2 | P160: 1 | R160: 4 | T160: 1 | W160: 6 | Y160: 18 | Z160: 54 | AE160: 6 | AG160: BELEN | AH160: Rosales | AI160: 116.7 | AJ160: 2.4 | AK160: 280.08
A161: 154 | B161: 106 | C161: CR 66 B x CL 32 F COST. NORTE | D161: VP | E161: EC-1 | F161: C | I161: 1 | M161: 1 | N161: 1 | T161: 1 | W161: 3 | X161: 1 | Y161: 8 | Z161: 28 | AE161: 3 | AG161: BELEN | AH161: Rosales | AI161: 116.8 | AJ161: 1.6 | AK161: 186.88
A162: 155 | B162: 106 | C162: CR 66 B x CL 32 F COST. SUR | D162: VP | E162: EC-1 | F162: C | G162: 1 | N162: 2 | R162: 1 | U162: 1 | W162: 3 | X162: 1 | Y162: 9 | Z162: 30 | AE162: 3 | AG162: BELEN | AH162: Rosales | AI162: 116.8 | AJ162: 1.6 | AK162: 186.88
A163: 156 | B163: 107 | C163: CR 77 x CL 30 A | D163: VP | E163: EC-1 | F163: C | L163: 2 | M163: 1 | N163: 1 | R163: 1 | S163: 2 | W163: 4 | Y163: 8 | Z163: 28 | AE163: 4 | AG163: BELEN | AH163: Belén | AI163: 115.3 | AJ163: 1.3 | AK163: 149.89
A164: 157 | B164: 107 | C164: CR 78 x CL 30 A | D164: VP | E164: EC-1 | F164: C | H164: 1 | M164: 1 | N164: 2 | S164: 1 | W164: 4 | X164: 1 | Y164: 8 | Z164: 31 | AE164: 4 | AG164: BELEN | AH164: Belén | AI164: 115.3 | AJ164: 1.3 | AK164: 149.89
A165: 158 | B165: 108 | C165: CR 70 x CL 30 A | D165: VP | E165: EC-1 | F165: C | H165: 2 | R165: 4 | S165: 1 | W165: 3 | X165: 3 | Y165: 8 | Z165: 34 | AE165: 2 | AG165: BELEN | AH165: Rosales | AI165: 113.9 | AJ165: 1.1 | AK165: =AI165*AJ165 -> 125.29
A166: 159 | B166: 109 | C166: CR 66 B x CL 30 A | D166: VP | E166: EC-1 | F166: C | G166: 2 | H166: 1 | I166: 1 | R166: 1 | S166: 2 | W166: 4 | X166: 3 | Y166: 6 | Z166: 33 | AE166: 4 | AG166: BELEN | AH166: Rosales | AI166: 116.6 | AJ166: 1 | AK166: 116.6
A167: 160 | B167: 110 | C167: CR 65 x CL 30 A | D167: VP | E167: EC-1 | F167: C | H167: 1 | I167: 2 | U167: 1 | W167: 3 | X167: 3 | Y167: 9 | Z167: 36 | AE167: 3 | AG167: BELEN | AH167: Fátima | AI167: 117 | AJ167: 1.3 | AK167: 152.1
A168: 161 | B168: 111 | C168: CR 65 x CL 25 | D168: VP | E168: EC-1 | F168: C | H168: 2 | I168: 2 | L168: 2 | R168: 2 | W168: 6 | X168: 4 | Y168: 8 | Z168: 46 | AE168: 6 | AG168: GUAYABAL | AH168: Trinidad | AI168: 111.1 | AJ168: 1.1 | AK168: 122.21
A169: 162 | B169: 112 | C169: CR 52 x CL 25 | D169: VP | E169: EC-1 | F169: C | H169: 1 | I169: 2 | L169: 1 | M169: 5 | R169: 2 | W169: 9 | X169: 3 | Y169: 12 | Z169: 60 | AE169: 9 | AG169: GUAYABAL | AH169: Santa Fé | AI169: 119.1 | AJ169: 1.2 | AK169: 142.92
A170: 163 | B170: 113 | C170: CR 80 x CL 19 | D170: VP | E170: EC-1 | F170: C | G170: 1 | H170: 2 | L170: 1 | N170: 1 | R170: 2 | V170: 1 | W170: 5 | X170: 3 | Y170: 6 | Z170: 36 | AA170: 6 | AC170: 1 | AE170: 5 | AF170: 4 | AG170: BELEN | AH170: La Gloria | AI170: 118.3 | AJ170: 1.1 | AK170: 130.13
A171: 164 | B171: 114 | C171: CR 76 x CL 16 | D171: VP | E171: EC-1 | F171: C | I171: 4 | M171: 1 | N171: 3 | W171: 8 | X171: 4 | Y171: 16 | Z171: 68 | AE171: 8 | AG171: BELEN | AH171: La Gloria | AI171: 115.8 | AJ171: 2 | AK171: 231.6
A172: 165 | B172: 115 | C172: AV 80 x CL 35 NORTE | D172: VP | E172: EC-1 | F172: C | H172: 2 | M172: 2 | W172: 4 | X172: 2 | Y172: 4 | Z172: 26 | AE172: 4 | AG172: LAURELES | AH172: Las Acacias | AI172: 112.4 | AJ172: 2.7 | AK172: 303.48
A173: 166 | B173: 115 | C173: AV 80 x CL 35 OCCIDENTAL | D173: VP | E173: EC-1 | F173: C | H173: 2 | M173: 2 | W173: 4 | X173: 2 | Y173: 4 | Z173: 26 | AE173: 4 | AG173: LAURELES | AH173: Las Acacias | AI173: 112.4 | AJ173: 2.7 | AK173: 303.48
A174: 167 | B174: 115 | C174: AV 80 x CL 35 ORIENTAL | D174: VP | E174: EC-1 | F174: C | H174: 2 | M174: 2 | W174: 4 | X174: 2 | Y174: 4 | Z174: 26 | AE174: 4 | AG174: LAURELES | AH174: Las Acacias | AI174: 112.4 | AJ174: 2.7 | AK174: 303.48
A175: 168 | B175: 115 | C175: AV 80 x CL 35 SUR | D175: VP | E175: EC-1 | F175: C | H175: 2 | M175: 2 | W175: 4 | X175: 2 | Y175: 4 | Z175: 26 | AE175: 4 | AG175: LAURELES | AH175: Las Acacias | AI175: 112.4 | AJ175: 2.7 | AK175: 303.48
A176: 169 | B176: 116 | C176: AV 80 x CL 33 NOR-OCCI | D176: VP | E176: EC-1 | F176: C | H176: 3 | M176: 3 | W176: 6 | X176: 3 | Y176: 6 | Z176: 39 | AE176: 6 | AG176: LAURELES | AH176: Las Acacias | AI176: 114.4 | AJ176: 2.9 | AK176: 331.76
A177: 170 | B177: 116 | C177: AV 80 x CL 33 NOR-ORIE | D177: VP | E177: EC-1 | F177: C | H177: 4 | M177: 4 | W177: 8 | X177: 4 | Y177: 8 | Z177: 52 | AE177: 7 | AG177: LAURELES | AH177: Las Acacias | AI177: 114.4 | AJ177: 2.9 | AK177: 331.76
A178: 171 | B178: 116 | C178: AV 80 x CL 33 SUR-OCCI | D178: VP | E178: EC-1 | F178: C | H178: 2 | M178: 2 | W178: 4 | X178: 2 | Y178: 4 | Z178: 26 | AE178: 4 | AG178: LAURELES | AH178: Las Acacias | AI178: 114.4 | AJ178: 2.9 | AK178: 331.76
A179: 172 | B179: 116 | C179: AV 80 x CL 33 SUR-ORIE | D179: VP | E179: EC-1 | F179: C | H179: 2 | M179: 2 | W179: 4 | X179: 2 | Y179: 4 | Z179: 26 | AE179: 4 | AG179: LAURELES | AH179: Las Acacias | AI179: 114.4 | AJ179: 2.9 | AK179: 331.76
A180: 173 | B180: 117 | C180: CR 87 x CL 30 | D180: VP | E180: EC-2 | F180: C | H180: 2 | M180: 4 | R180: 2 | W180: 6 | X180: 2 | Y180: 8 | Z180: 40 | AE180: 6 | AG180: BELEN | AH180: Los Alpes | AI180: 118.6 | AJ180: 0.8 | AK180: 94.88
A181: 174 | B181: 118 | C181: CR 83 x CL 19 COST.NORTE | D181: V | E181: EC-1 | F181: C | G181: 2 | L181: 1 | W181: 3 | X181: 2 | Z181: 15 | AE181: 3 | AG181: BELEN | AH181: Altavista | AI181: 117.3 | AJ181: 0.6 | AK181: 70.38
A182: 175 | B182: 118 | C182: CR 83 x CL 19 COST. SUR | D182: V | E182: EC-1 | F182: C | G182: 2 | W182: 2 | X182: 2 | Z182: 12 | AE182: 2 | AG182: BELEN | AH182: Altavista | AI182: 117.3 | AJ182: 0.6 | AK182: 70.38
A183: 176 | B183: 119 | C183: CR 53 x CL 30 A | D183: V | E183: EC-1 | F183: C | G183: 3 | L183: 1 | W183: 4 | X183: 3 | Z183: 21 | AE183: 4 | AG183: BELEN | AH183: Cerro Nutibara | AI183: 114.1 | AJ183: 0.5 | AK183: 57.05
A184: 177 | B184: 120 | C184: CR 52 x CL 29 B | D184: VP | E184: EC-1 | F184: C | H184: 1 | L184: 5 | M184: 1 | R184: 2 | W184: 7 | X184: 1 | Y184: 4 | Z184: 32 | AE184: 7 | AG184: GUAYABAL | AH184: Santa Fé | AK184: 0
A185: 178 | B185: 122 | C185: CR 55 x CL 30 A | D185: V | E185: EC-1 | F185: C | G185: 2 | L185: 1 | W185: 3 | X185: 2 | Z185: 15 | AE185: 3 | AG185: GUAYABAL | AH185: Tenche | AI185: 114.4 | AJ185: 0.6 | AK185: 68.64
A186: 179 | B186: 123 | C186: CR 64 A x CL 33 | D186: VP | E186: EC-2 | F186: C | H186: 2 | M186: 2 | W186: 4 | X186: 2 | Y186: 4 | Z186: 26 | AE186: 4 | AG186: LAURELES | AH186: Los Conquistadores | AI186: 115.7 | AJ186: 0.8 | AK186: 92.56
A187: 180 | B187: 124 | C187: AV 80 x CL 44 cost NORTE | D187: VP | E187: EC-1 | F187: C | M187: 2 | W187: 2 | Y187: 2 | Z187: 10 | AB187: 2 | AE187: 2 | AF187: 2 | AG187: LAURELES | AH187: Lorena | AI187: 116.4 | AJ187: 2.0 | AK187: 232.8
A188: 181 | B188: 124 | C188: AV 80 x CL 44 cost OCCIDENTAL | D188: VP | E188: EC-1 | F188: C | H188: 1 | I188: 1 | L188: 1 | M188: 3 | W188: 6 | X188: 2 | Y188: 4 | Z188: 32 | AB188: 2 | AE188: 6 | AF188: 2 | AG188: LAURELES | AH188: Lorena | AI188: 116.4 | AJ188: 2.0 | AK188: 232.8
A189: 182 | B189: 124 | C189: AV 80 x CL 44 cost ORIENTAL | D189: VP | E189: EC-1 | F189: C | H189: 1 | I189: 1 | L189: 1 | M189: 3 | W189: 6 | X189: 2 | Y189: 4 | Z189: 32 | AB189: 2 | AE189: 6 | AF189: 2 | AG189: LAURELES | AH189: Lorena | AI189: 116.4 | AJ189: 2.0 | AK189: 232.8
A190: 183 | B190: 124 | C190: AV 80 x CL 44 cost SUR | D190: VP | E190: EC-1 | F190: C | M190: 2 | W190: 2 | Y190: 2 | Z190: 10 | AB190: 2 | AE190: 2 | AF190: 2 | AG190: LAURELES | AH190: Lorena | AI190: 116.4 | AJ190: 2.0 | AK190: 232.8
A191: 184 | B191: 125 | C191: CR 80 A x CL 44 | D191: VP | E191: EC-2 | F191: C | G191: 1 | H191: 1 | L191: 1 | M191: 1 | N191: 2 | W191: 6 | X191: 2 | Y191: 6 | Z191: 36 | AE191: 6 | AG191: LAURELES | AH191: Lorena | AI191: 114 | AJ191: 0.9 | AK191: 102.6
A192: 185 | B192: 126 | C192: CR 79 AA x CL 44 | D192: V | E192: EC-1 | F192: C | G192: 2 | L192: 6 | W192: 9 | X192: 2 | Z192: 33 | AE192: 9 | AG192: LAURELES | AH192: Lorena | AI192: 112.3 | AJ192: 0.8 | AK192: 89.84
A193: 186 | B193: 127 | C193: CR 78 x CL 44 | D193: V | E193: EC-1 | F193: C | G193: 3 | L193: 3 | W193: 6 | X193: 3 | Z193: 27 | AE193: 6 | AG193: LAURELES | AH193: Lorena | AI193: 117.3 | AJ193: 1.8 | AK193: 211.14
A194: 187 | B194: 127 | C194: CR 78 x CL 44 A | D194: V | E194: EC-1 | F194: C | G194: 2 | L194: 2 | W194: 4 | X194: 2 | Z194: 18 | AE194: 4 | AG194: LAURELES | AH194: Lorena | AI194: 117.3 | AJ194: 1.8 | AK194: 211.14
A195: 188 | B195: 128 | C195: CR 74 x CL 44 | D195: V | E195: EC-1 | F195: C | G195: 3 | L195: 2 | R195: 2 | W195: 5 | X195: 3 | Y195: 2 | Z195: 28 | AC195: 2 | AE195: 5 | AG195: LAURELES | AH195: Lorena | AI195: 116.2 | AJ195: 0.8 | AK195: 92.96
A196: 189 | B196: 129 | C196: CR 73 x CL 43 | D196: V | E196: EC-1 | F196: C | L196: 4 | W196: 4 | Z196: 12 | AE196: 4 | AG196: LAURELES | AH196: Lorena | AI196: 114.5 | AJ196: 0.7 | AK196: 80.15
A197: 190 | B197: 129 | C197: CR 73 x CL 44 | D197: V | E197: EC-1 | F197: C | G197: 2 | L197: 2 | W197: 6 | X197: 2 | Z197: 24 | AE197: 6 | AG197: LAURELES | AH197: Lorena | AI197: 114.5 | AJ197: 0.7 | AK197: 80.15
A198: 191 | B198: 130 | C198: CR 70 x CL 43 | D198: VP | E198: EC-1 | F198: C | H198: 1 | I198: 1 | M198: 2 | R198: 3 | S198: 1 | W198: 4 | X198: 2 | Y198: 10 | Z198: 38 | AA198: 8 | AE198: 4 | AF198: 2 | AG198: LAURELES | AH198: Bolivariana | AI198: 119.8 | AJ198: 1.1 | AK198: 131.78
A199: 192 | B199: 131 | C199: CR 70 x CL 44 | D199: VP | E199: EC-1 | F199: C | H199: 3 | N199: 3 | R199: 3 | S199: 1 | V199: 5 | W199: 6 | X199: 3 | Y199: 14 | Z199: 55 | AA199: 10 | AE199: 6 | AF199: 6 | AG199: LAURELES | AH199: Bolivariana | AI199: 112 | AJ199: 2.7 | AK199: 302.4
A200: 193 | B200: 131 | C200: CR 70 x CL 44 A | D200: VP | E200: EC-1 | F200: C | H200: 2 | M200: 1 | N200: 2 | R200: 2 | S200: 1 | W200: 4 | X200: 2 | Y200: 11 | Z200: 40 | AA200: 8 | AE200: 4 | AF200: 3 | AG200: LAURELES | AH200: Bolivariana | AI200: 112 | AJ200: 2.7 | AK200: 302.4
A201: 194 | B201: 132 | C201: CR 68 A x CL 44 | D201: VP | E201: EC-1 | F201: C | H201: 2 | N201: 2 | R201: 1 | S201: 1 | T201: 1 | W201: 4 | X201: 2 | Y201: 12 | Z201: 42 | AC201: 2 | AE201: 4 | AG201: LAURELES | AH201: Naranjal | AI201: 118.5 | AJ201: 1.2 | AK201: 142.2
A202: 195 | B202: 133 | C202: CR 79 x TV 39 B | D202: V | E202: EC-1 | F202: C | G202: 4 | L202: 2 | W202: 6 | X202: 4 | Z202: 30 | AE202: 6 | AG202: LAURELES | AH202: Lorena | AI202: 114.5 | AJ202: 0.5 | AK202: 57.25
A203: 196 | B203: 134 | C203: TV 39 B x CQ 74 B | D203: V | E203: EC-1 | F203: C | G203: 4 | L203: 4 | W203: 8 | X203: 4 | Z203: 36 | AE203: 8 | AG203: LAURELES | AH203: Laureles | AI203: 123.1 | AJ203: 0.8 | AK203: 98.48
... 106 more rows
